[Event "Israel Open Championship 2023"]
[Site "Acre"]
[Date "2024.01.29"]
[Round "9.26"]
[White "Levitan, Ronit"]
[Black "Meizlin, Yaacov"]
[Result "1-0"]
[ECO "B07"]
[WhiteElo "2101"]
[BlackElo "1857"]
[Annotator "NA RC"]
[PlyCount "123"]
[EventDate "2024.01.18"]
[EventType "swiss"]
[EventCountry "ISR"]
[SourceTitle "playchess.com"]
[Source "ChessBase"]
[SourceQuality "1"]
[TimeControl "5400+30"]

1. e4 {[%emt 0:00:52]} d6 {[%emt 0:00:34]} 2. d4 {[%emt 0:00:06]} Nf6 {[%emt 0:00:07]} 3. Nc3 {[%emt 0:00:05]} c6 {[%emt 0:00:19]} 4. a4 {[%emt 0:00:43]} a5 {[%emt 0:00:29]} 5. Nf3 {[%emt 0:00:40]} Bg4 {[%emt 0:01:48]} 6. Be2 {[%emt 0:03:44]} Nbd7 {[%emt 0:10:22]} 7. Be3 {[%emt 0:04:09]} Qc7 {[%emt 0:03:28]} 8. h3 {[%emt 0:03:17]} Bxf3 {[%emt 0:00:45]} 9. Bxf3 {[%emt 0:00:06]} e5 {[%emt 0:00:10]} 10. Be2 {[%emt 0:01:47]} Be7 {[%emt 0:01:38]} 11. O-O {[%emt 0:05:32]} O-O {[%emt 0:10:37]} 12. Qd2 {[%emt 0:01:58]} Rad8 {[%emt 0:11:05]} 13. Rad1 {[%emt 0:00:56]} d5 {[%emt 0:11:50]} 14. exd5 {[%emt 0:02:38]} Nxd5 {[%emt 0:05:29]} 15. Nxd5 {[%emt 0:03:24]} cxd5 {[%emt 0:03:54]} 16. dxe5 {[%emt 0:00:12]} Nxe5 {[%emt 0:00:21]} 17. Bf4 {[%emt 0:09:33]} Bf6 {[%emt 0:12:01]} 18. c3 {[%emt 0:08:21]} Qb6 {[%emt 0:06:20]} 19. Bb5 {[%emt 0:05:01]} d4 {[%emt 0:02:49]} 20. cxd4 {[%emt 0:14:25]} Rxd4 {[%emt 0:16:24]} 21. Be3 {[%emt 0:12:18]} Rxd2 {[%emt 0:00:00]} 22. Bxb6 {[%emt 0:00:06]} Rxb2 {[%emt 0:00:00]} 23. Bxa5 {[%emt 0:00:25]} Nc6 {[%emt 0:00:00]} 24. Bb6 {[%emt 0:00:07]} h6 {[%emt 0:00:00]} 25. Rfe1 {[%emt 0:04:38]} g6 {[%emt 0:00:00]} 26. Rd7 {[%emt 0:02:11]} Rb8 {[%emt 0:00:24]} 27. Bc7 {[%emt 0:00:06]} Rf8 {[%emt 0:01:08]} 28. Bd6 {[%emt 0:03:32]} Rc8 {[%emt 0:01:21]} 29. Rxb7 {[%emt 0:04:56]} Bd4 {[%emt 0:00:13]} 30. Re2 {[%emt 0:01:02]} Rxe2 {[%emt 0:00:43]} 31. Bxe2 {[%emt 0:00:07]} Na5 {[%emt 0:00:51]} 32. Rb8 {[%emt 0:03:59]} Rxb8 {[%emt 0:00:16]} 33. Bxb8 {[%emt 0:00:05]} Kf8 {[%emt 0:00:07]} 34. Bd6+ {[%emt 0:00:38]} Ke8 {[%emt 0:00:24]} 35. Bb5+ {[%emt 0:00:04]} Kd8 {[%emt 0:00:03]} 36. Kf1 {[%emt 0:01:07]} Nb7 {[%emt 0:00:28]} 37. Bb4 {[%emt 0:00:25]} Bb6 {[%emt 0:00:10]} 38. Ke2 {[%emt 0:00:08]} Kc7 {[%emt 0:00:30]} 39. Be8 {[%emt 0:01:22]} Nd8 {[%emt 0:01:49]} 40. Bd2 {[%emt 0:00:32]} g5 {[%emt 0:00:21]} 41. Bc3 {[%emt 0:00:51]} Kd6 {[%emt 0:00:51]} 42. f3 {[%emt 0:01:42]} Ke7 {[%emt 0:00:00]} 43. Bb5 {[%emt 0:00:00]} Ne6 {[%emt 0:00:00]} 44. Kd2 {[%emt 0:00:00]} Nf4 {[%emt 0:00:00]} 45. Bf1 {[%emt 0:00:00]} Nd5 {[%emt 0:00:00]} 46. Bb2 {[%emt 0:00:00]} Ne3 {[%emt 0:00:00]} 47. Ke2 {[%emt 0:00:00]} Nc4 {[%emt 0:00:00]} 48. Bc1 {[%emt 0:00:00]} f5 {[%emt 0:00:00]} 49. Kd3 {[%emt 0:00:00]} Ne5+ {[%emt 0:00:00]} 50. Kc3 {[%emt 0:00:00]} Nc6 {[%emt 0:00:00]} 51. Kc4 {[%emt 0:00:00]} Bc7 {[%emt 0:00:00]} 52. Be3 {[%emt 0:00:00]} g4 {[%emt 0:00:00]} 53. hxg4 {[%emt 0:00:00]} fxg4 {[%emt 0:00:00]} 54. Kb5 {[%emt 0:00:00]} Ne5 {[%emt 0:00:00]} 55. f4 {[%emt 0:00:00]} Nf7 {[%emt 0:01:32]} 56. Kc6 {[%emt 0:00:00]} Ba5 {[%emt 0:02:18]} 57. Bb6 {[%emt 0:00:00]} Bd2 {[%emt 0:00:52]} 58. a5 {[%emt 0:00:00]} Bxf4 {[%emt 0:03:15]} 59. a6 {[%emt 0:00:00]} Ne5+ {[%emt 0:00:05]} 60. Kb7 {[%emt 0:00:00]} Nd7 {[%emt 0:00:04]} 61. Bd4 {[%emt 0:00:10]} Bb8 {[%emt 0:01:25]} 62. Bb5 {[%emt 0:00:20]} 1-0

[Event "Israel Open Championship 2023"]
[Site "Acre"]
[Date "2024.01.29"]
[Round "9.27"]
[White "Noy, Shalom"]
[Black "Taieb, Ariel"]
[Result "0-1"]
[ECO "D13"]
[WhiteElo "1924"]
[BlackElo "1986"]
[Annotator "NA RC"]
[PlyCount "108"]
[EventDate "2024.01.18"]
[EventType "swiss"]
[EventCountry "ISR"]
[SourceTitle "playchess.com"]
[Source "ChessBase"]
[SourceQuality "1"]
[TimeControl "5400+30"]

1. d4 {[%emt 0:00:04]} d5 {[%emt 0:00:13]} 2. c4 {[%emt 0:00:15]} c6 {[%emt 0:00:20]} 3. cxd5 {[%emt 0:02:22]} cxd5 {[%emt 0:00:10]} 4. Nf3 {[%emt 0:00:12]} Nf6 {[%emt 0:00:30]} 5. Nc3 {[%emt 0:00:15]} Nc6 {[%emt 0:00:22]} 6. Bf4 {[%emt 0:00:13]} a6 {[%emt 0:00:14]} 7. Rc1 {[%emt 0:01:07]} Bf5 {[%emt 0:00:09]} 8. e3 {[%emt 0:00:47]} Rc8 {[%emt 0:00:18]} 9. Be2 {[%emt 0:03:52]} e6 {[%emt 0:00:44]} 10. O-O {[%emt 0:03:26]} Be7 {[%emt 0:00:27]} 11. Nh4 {[%emt 0:07:45]} Be4 {[%emt 0:01:50]} 12. Nf3 {[%emt 0:07:20]} Bxf3 {[%emt 0:03:21]} 13. Bxf3 {[%emt 0:01:16]} O-O {[%emt 0:03:11]} 14. a3 {[%emt 0:02:47]} Na5 {[%emt 0:03:42]} 15. Be2 {[%emt 0:02:01]} b5 {[%emt 0:01:40]} 16. Na2 {[%emt 0:02:24]} Nc4 {[%emt 0:13:26]} 17. Bxc4 {[%emt 0:01:54]} bxc4 {[%emt 0:02:14]} 18. f3 {[%emt 0:04:49]} Nh5 {[%emt 0:05:02]} 19. Bg3 {[%emt 0:01:58]} Nxg3 {[%emt 0:00:33]} 20. hxg3 {[%emt 0:00:09]} Rb8 {[%emt 0:02:03]} 21. Rf2 {[%emt 0:01:01]} Rb3 {[%emt 0:11:58]} 22. Rc3 {[%emt 0:02:09]} Qb8 {[%emt 0:00:37]} 23. Rxb3 {[%emt 0:00:58]} cxb3 {[%emt 0:00:07]} 24. Nc3 {[%emt 0:06:48]} Qxg3 {[%emt 0:00:51]} 25. Qxb3 {[%emt 0:00:37]} Bd6 {[%emt 0:01:12]} 26. Kf1 {[%emt 0:08:28]} Qh2 {[%emt 0:01:20]} 27. f4 {[%emt 0:01:49]} Rb8 {[%emt 0:12:33]} 28. Qc2 {[%emt 0:06:11]} Qh1+ {[%emt 0:07:45]} 29. Ke2 {[%emt 0:00:19]} Be7 {[%emt 0:00:32]} 30. Kd3 {[%emt 0:00:58]} Bh4 {[%emt 0:07:54]} 31. Re2 {[%emt 0:04:37]} Bg3 {[%emt 0:04:20]} 32. Na4 {[%emt 0:01:31]} h5 {[%emt 0:08:29]} 33. Kd2 {[%emt 0:04:34]} Qa1 {[%emt 0:03:24]} 34. Kd3 {[%emt 0:03:08]} Be1 {[%emt 0:02:07]} 35. Nc5 {[%emt 0:03:19]} Bh4 {[%emt 0:03:37]} 36. Nxa6 {[%emt 0:03:04]} Rb6 {[%emt 0:00:25]} 37. Nc5 {[%emt 0:02:01]} Be7 {[%emt 0:00:41]} 38. Nd7 {[%emt 0:02:56]} Rb5 {[%emt 0:00:34]} 39. Nc5 {[%emt 0:01:35]} h4 {[%emt 0:01:05]} 40. a4 {[%emt 0:01:14]} Rb4 {[%emt 0:00:00]} 41. b3 {[%emt 0:01:54]} Bxc5 {[%emt 0:00:00]} 42. dxc5 {[%emt 0:00:00]} Qa3 {[%emt 0:00:00]} 43. Kc3 {[%emt 0:00:00]} Rc4+ {[%emt 0:00:00]} 44. Kd2 {[%emt 0:00:00]} Rxc2+ {[%emt 0:00:00]} 45. Kxc2 {[%emt 0:00:00]} Qa2+ {[%emt 0:00:00]} 46. Kd1 {[%emt 0:00:00]} Qxb3+ {[%emt 0:00:00]} 47. Rc2 {[%emt 0:00:00]} Qxa4 {[%emt 0:00:00]} 48. c6 {[%emt 0:00:00]} Qa6 {[%emt 0:00:00]} 49. Kd2 {[%emt 0:00:00]} f6 {[%emt 0:00:00]} 50. c7 {[%emt 0:00:00]} Qc8 {[%emt 0:00:00]} 51. Ke2 {[%emt 0:00:00]} Kf7 {[%emt 0:00:00]} 52. Kf3 {[%emt 0:00:00]} e5 {[%emt 0:00:00]} 53. e4 {[%emt 0:00:00]} d4 {[%emt 0:00:00]} 54. f5 {[%emt 0:00:00]} Ke7 {[%emt 0:00:00]} 0-1

[Event "Israel Open Championship 2023"]
[Site "Acre"]
[Date "2024.01.29"]
[Round "9.28"]
[White "Iliaguev, Kafar"]
[Black "Gunders, Elad"]
[Result "1-0"]
[ECO "D00"]
[WhiteElo "2291"]
[BlackElo "1792"]
[Annotator "TA"]
[PlyCount "91"]
[EventDate "2024.01.18"]
[EventType "swiss"]
[EventCountry "ISR"]
[SourceTitle "playchess.com"]
[Source "ChessBase"]
[SourceQuality "1"]
[TimeControl "5400+30"]

{[%evp 9,90,28,13,24,28,23,27,28,42,17,4,0,0,0,0,0,0,13,10,0,0,-4,24,22,16,14,10,8,12,8,6,-35,-45,-39,243,84,228,226,241,240,259,265,263,262,256,243,239,231,263,237,247,243,243,246,253,249,279,253,294,304,283,294,402,392,595,438,1169,1134,1142,1106,1071,604,1042,885,29988,29989,29989,29990,29997,29998,29998,29999,29999]} 1. d4 {[%emt 0:00:04]} d5 {[%emt 0:00:20]} 2. Bf4 {[%emt 0:00:05]} c5 {[%emt 0:00:10]} 3. e3 {[%emt 0:00:06]} Nc6 {[%emt 0:00:18]} 4. c3 {[%emt 0:00:09]} Qb6 {[%emt 0:00:36]} 5. Qb3 {[%emt 0:00:06]} c4 {[%emt 0:01:26]} 6. Qc2 {[%emt 0:00:04]} e5 {[%emt 0:00:35]} 7. dxe5 {[%emt 0:00:07] Black must now prevent e4.} Bf5 {[%emt 0:00:22]} 8. Qc1 {[%emt 0:00:13] White has an edge.} g5 {[%emt 0:00:48]} 9. Bg3 {[%emt 0:00:24]} h5 {[%emt 0:00:30]} 10. h3 {[%emt 0:00:12]} Bg7 {[%emt 0:00:22]} 11. Nf3 {[%emt 0:00:12]} g4 {[%emt 0:01:23]} 12. hxg4 {[%emt 0:06:22]} hxg4 {[%emt 0:00:14]} 13. Rxh8 {[%emt 0:00:05]} Bxh8 {[%emt 0:00:07]} 14. Nd4 {[%emt 0:00:57]} Nge7 {[%emt 0:00:44]} 15. Na3 {[%emt 0:04:45]} Bxe5 {[%emt 0:04:57]} 16. Bxe5 {[%emt 0:02:16]} Nxe5 {[%emt 0:00:27]} 17. Nxf5 {[%emt 0:01:08]} Nxf5 {[%emt 0:00:12]} 18. Qc2 {[%emt 0:00:56]} Qe6 {[%emt 0:21:47]} 19. O-O-O {[%emt 0:02:56]} g3 {[%emt 0:10:00]} 20. e4 {[%emt 0:08:04]} dxe4 {[%emt 0:09:14]} 21. Qxe4 {[%emt 0:00:16]} Nd6 {[%emt 0:01:23][%mdl 8192] [#] Dodges Nb5. Black is now going downhill.} (21... gxf2 $15 {keeps the upper hand.} 22. Qf4 Qh6 23. Qxh6 Nxh6 24. Nxc4 Neg4) 22. Qh4 $2 {[%emt 0:03:36]} (22. Rxd6 $1 $18 {is the precise move to win.} Qxd6 23. Nxc4 (23. Qxb7 $2 {too greedy.} Rd8 $19) (23. f4 $2 O-O-O $19)) 22... Ng6 {[%emt 0:04:22]} (22... gxf2 $16 {is a better defense.} 23. Qxf2 (23. Qh8+ Ke7 $14) 23... a6) 23. Qxg3 $18 {[%emt 0:00:58]} O-O-O {[%emt 0:00:31]} 24. Qg5 {[%emt 0:01:15]} Ne7 {[%emt 0:04:49]} 25. Qc5+ {[%emt 0:03:18]} Nc6 {[%emt 0:00:36]} 26. Nxc4 {[%emt 0:01:36]} Nxc4 {[%emt 0:02:17]} 27. Qxc4 {[%emt 0:00:19]} Rxd1+ {[%emt 0:07:07]} 28. Kxd1 {[%emt 0:00:20][%mdl 4096] Endgame. Qxe6+ is the strong threat. KQB-KQN} Qd6+ {[%emt 0:00:07]} 29. Qd3 {[%emt 0:02:35]} Qf4 {[%emt 0:00:22]} 30. Qd2 {[%emt 0:06:53]} Qe4 {[%emt 0:02:41]} 31. Kc1 {[%emt 0:01:24] Prevents Qb1+} Ne5 {[%emt 0:06:26]} 32. b3 {[%emt 0:04:20]} f6 {[%emt 0:02:04]} 33. Kb2 {[%emt 0:00:27]} Ng4 {[%emt 0:01:07]} 34. Bd3 {[%emt 0:04:05]} Qe5 {[%emt 0:02:42]} 35. f4 {[%emt 0:03:26]} Qd5 {[%emt 0:02:11]} 36. Qe2 {[%emt 0:00:50]} Nf2 {[%emt 0:01:55]} (36... f5 $142 37. Bc4 Qc5) 37. Bc4 {[%emt 0:03:27]} Qxg2 {[%emt 0:05:04]} (37... Qc5 $142 38. Qe8+ Kc7 39. Qf7+ Kb8 40. Qxf6 Kc8 41. Qe6+ Kd8) 38. Qe8+ {[%emt 0:00:10]} Kc7 {[%emt 0:00:03]} 39. Qe7+ {[%emt 0:00:08]} Kb6 {[%emt 0:00:32]} 40. Qxf6+ {[%emt 0:00:10]} Kc7 {[%emt 0:01:55] [#] ( -> ...Nd3+)} 41. Qe5+ {[%emt 0:02:18]} Kc6 {[%emt 0:02:16]} 42. Bb5+ {[%emt 0:01:52] White mates.} Kb6 {[%emt 0:00:02]} 43. Qd6+ {[%emt 0:00:30]} Kxb5 {[%emt 0:01:50]} 44. a4+ {[%emt 0:00:11]} Ka5 {[%emt 0:00:06]} 45. Qb4+ {[%emt 0:00:08]} Ka6 {[%emt 0:00:04]} 46. Qb5# {[%emt 0:39:47] Weighted Error Value: White=0.25 (precise) /Black=0.49.  Loses game:     	---       	Black=1      Mistake:       	White=1     	Black=3      Inaccurate:     	White=1     	Black=2      OK:         	White=15    	Black=8      Best:        	White=1     	Black=1} 1-0

[Event "Israel Open Championship 2023"]
[Site "Acre"]
[Date "2024.01.29"]
[Round "9.29"]
[White "Zakin, Ilay"]
[Black "Blumenthal, Yonatan"]
[Result "1-0"]
[ECO "C77"]
[WhiteElo "2009"]
[BlackElo "1496"]
[Annotator "NA RC"]
[PlyCount "183"]
[EventDate "2024.01.18"]
[EventType "swiss"]
[EventCountry "ISR"]
[SourceTitle "playchess.com"]
[Source "ChessBase"]
[SourceQuality "1"]
[TimeControl "5400+30"]

1. e4 {[%emt 0:00:11]} e5 {[%emt 0:00:06]} 2. Nf3 {[%emt 0:00:05]} Nc6 {[%emt 0:00:03]} 3. Bb5 {[%emt 0:00:07]} a6 {[%emt 0:00:06]} 4. Ba4 {[%emt 0:00:06]} Nf6 {[%emt 0:00:08]} 5. Nc3 {[%emt 0:00:07]} b5 {[%emt 0:03:16]} 6. Bb3 {[%emt 0:00:01]} d6 {[%emt 0:00:56]} 7. Ng5 {[%emt 0:00:28]} d5 {[%emt 0:13:23]} 8. Nxd5 {[%emt 0:00:28]} Na5 {[%emt 0:00:28]} 9. Nxf6+ {[%emt 0:00:58]} Qxf6 {[%emt 0:00:11]} 10. Nf3 {[%emt 0:00:20]} Nxb3 {[%emt 0:01:09]} 11. axb3 {[%emt 0:00:04]} Bc5 {[%emt 0:01:14]} 12. d3 {[%emt 0:09:49]} Qg6 {[%emt 0:08:57]} 13. O-O {[%emt 0:03:47]} f6 {[%emt 0:03:52]} 14. Nh4 {[%emt 0:02:26]} Qf7 {[%emt 0:00:25]} 15. Be3 {[%emt 0:00:39]} Bxe3 {[%emt 0:02:48]} 16. fxe3 {[%emt 0:00:07]} O-O {[%emt 0:01:40]} 17. Nf5 {[%emt 0:00:28]} Bxf5 {[%emt 0:02:06]} 18. exf5 {[%emt 0:01:13]} Rfd8 {[%emt 0:00:37]} 19. Qg4 {[%emt 0:02:06]} Qd5 {[%emt 0:02:57]} 20. Rf3 {[%emt 0:00:54]} Qc5 {[%emt 0:01:10]} 21. Rg3 {[%emt 0:00:45]} Rd7 {[%emt 0:00:32]} 22. Rc1 {[%emt 0:01:53]} a5 {[%emt 0:01:26]} 23. h4 {[%emt 0:05:45]} Qb4 {[%emt 0:05:40]} 24. h5 {[%emt 0:01:47]} h6 {[%emt 0:01:17]} 25. Qe2 {[%emt 0:09:24]} c6 {[%emt 0:03:42]} 26. Qe1 {[%emt 0:03:41]} Qd6 {[%emt 0:01:52]} 27. Rg4 {[%emt 0:02:39]} Rb7 {[%emt 0:06:28]} 28. Ra1 {[%emt 0:02:59]} Qc5 {[%emt 0:05:04]} 29. Qd2 {[%emt 0:01:04]} Kh7 {[%emt 0:03:21]} 30. b4 {[%emt 0:00:31]} Qd6 {[%emt 0:01:45]} 31. bxa5 {[%emt 0:00:18]} b4 {[%emt 0:00:48]} 32. Rc4 {[%emt 0:01:18]} c5 {[%emt 0:01:36]} 33. Qe2 {[%emt 0:10:54]} Rb5 {[%emt 0:02:56]} 34. Qf3 {[%emt 0:01:06]} Raxa5 {[%emt 0:01:27]} 35. Rxa5 {[%emt 0:39:32]} Rxa5 {[%emt 0:00:11]} 36. Qb7 {[%emt 0:00:00]} e4 {[%emt 0:01:05]} 37. Qf7 {[%emt 0:00:00]} Ra1+ {[%emt 0:03:10]} 38. Kf2 {[%emt 0:00:00]} Qh2 {[%emt 0:00:33]} 39. Qg6+ {[%emt 0:00:00]} Kg8 {[%emt 0:01:04]} 40. Qe8+ {[%emt 0:00:00]} Kh7 {[%emt 0:00:33]} 41. Qg6+ {[%emt 0:00:00]} Kg8 {[%emt 0:00:10]} 42. Qe8+ {[%emt 0:00:03]} Kh7 {[%emt 0:00:06]} 43. Qxe4 {[%emt 0:00:35]} Rh1 {[%emt 0:05:20]} 44. Qf4 {[%emt 0:00:00]} Qg1+ {[%emt 0:00:00]} 45. Kf3 {[%emt 0:00:00]} Qf1+ {[%emt 0:00:00]} 46. Kg3 {[%emt 0:00:00]} Qe2 {[%emt 0:00:00]} 47. Qf3 {[%emt 0:00:00]} Qe1+ {[%emt 0:00:00]} 48. Qf2 {[%emt 0:00:00]} Qd1 {[%emt 0:00:00]} 49. Qf3 {[%emt 0:00:00]} Qe1+ {[%emt 0:00:00]} 50. Qf2 {[%emt 0:00:00]} Qd1 {[%emt 0:00:00]} 51. Rf4 {[%emt 0:02:43]} Qxh5 {[%emt 0:00:00]} 52. Rg4 {[%emt 0:01:12]} Qh2+ {[%emt 0:00:00]} 53. Kf3 {[%emt 0:00:03]} Qe5 {[%emt 0:00:00]} 54. e4 {[%emt 0:00:55]} Rb1 {[%emt 0:00:00]} 55. b3 {[%emt 0:00:54]} Rb2 {[%emt 0:00:01]} 56. Rg6 {[%emt 0:01:11]} c4 {[%emt 0:04:03]} 57. d4 {[%emt 0:00:40]} Qc7 {[%emt 0:00:44]} 58. d5 {[%emt 0:02:35]} cxb3 {[%emt 0:01:02]} 59. d6 {[%emt 0:00:20]} Qxd6 {[%emt 0:00:48]} 60. Qa7 {[%emt 0:00:14]} Qf8 {[%emt 0:00:47]} 61. cxb3 {[%emt 0:00:01]} Rxb3+ {[%emt 0:00:26]} 62. Kg4 {[%emt 0:00:07]} Rb2 {[%emt 0:00:50]} 63. Kh5 {[%emt 0:00:18]} Re2 {[%emt 0:00:44]} 64. Qb7 {[%emt 0:00:26]} Kh8 {[%emt 0:00:52]} 65. Rg3 {[%emt 0:01:28]} Re1 {[%emt 0:01:46]} 66. Kg4 {[%emt 0:00:46]} Qe8 {[%emt 0:01:20]} 67. Kf3 {[%emt 0:00:58]} Qh5+ {[%emt 0:01:39]} 68. Rg4 {[%emt 0:00:10]} Rf1+ {[%emt 0:05:26]} 69. Kg3 {[%emt 0:00:20]} g5 {[%emt 0:00:24]} 70. Qxb4 {[%emt 0:00:30]} Qf7 {[%emt 0:00:32]} 71. Kh2 {[%emt 0:00:48]} h5 {[%emt 0:01:45]} 72. Rg3 {[%emt 0:00:00]} h4 {[%emt 0:00:20]} 73. Rc3 {[%emt 0:00:05]} Qe8 {[%emt 0:02:19]} 74. Qd6 {[%emt 0:00:34]} Qe5+ {[%emt 0:00:58]} 75. Qxe5 {[%emt 0:00:01]} fxe5 {[%emt 0:05:36]} 76. Rc5 {[%emt 0:00:03]} Kg7 {[%emt 0:00:00]} 77. Rxe5 {[%emt 0:00:06]} Rf4 {[%emt 0:00:00]} 78. Re7+ {[%emt 0:00:30]} Kf6 {[%emt 0:00:00]} 79. Re6+ {[%emt 0:00:03]} Kf7 {[%emt 0:00:00]} 80. Kh3 {[%emt 0:00:09]} Kf8 {[%emt 0:00:00]} 81. Rg6 {[%emt 0:00:56]} Rxe4 {[%emt 0:00:00]} 82. Rxg5 {[%emt 0:00:01]} Kf7 {[%emt 0:00:00]} 83. Rg4 {[%emt 0:00:01]} Re3+ {[%emt 0:00:00]} 84. Kxh4 {[%emt 0:00:12]} Kf6 {[%emt 0:00:00]} 85. Rf4 {[%emt 0:00:09]} Re2 {[%emt 0:00:00]} 86. g4 {[%emt 0:00:19]} Rg2 {[%emt 0:00:00]} 87. Ra4 {[%emt 0:00:11]} Ke5 {[%emt 0:00:00]} 88. Kg5 {[%emt 0:00:22]} Rg1 {[%emt 0:00:00]} 89. Ra5+ {[%emt 0:00:16]} Kd6 {[%emt 0:00:00]} 90. Ra6+ {[%emt 0:00:11]} Ke7 {[%emt 0:00:05]} 91. f6+ {[%emt 0:00:03]} Kf7 {[%emt 0:00:09]} 92. Ra7+ {[%emt 0:00:04]} 1-0

[Event "Israel Open Championship 2023"]
[Site "Acre"]
[Date "2024.01.29"]
[Round "9.30"]
[White "Moshenberg, David"]
[Black "Dezent, Eyal"]
[Result "0-1"]
[ECO "D35"]
[WhiteElo "1847"]
[BlackElo "1947"]
[Annotator "NA RC"]
[PlyCount "96"]
[EventDate "2024.01.18"]
[EventType "swiss"]
[EventCountry "ISR"]
[SourceTitle "playchess.com"]
[Source "ChessBase"]
[SourceQuality "1"]
[TimeControl "5400+30"]

1. d4 {[%emt 0:00:03]} d5 {[%emt 0:00:23]} 2. c4 {[%emt 0:00:01]} e6 {[%emt 0:00:07]} 3. Nc3 {[%emt 0:00:01]} c6 {[%emt 0:00:18]} 4. cxd5 {[%emt 0:00:31]} exd5 {[%emt 0:00:08]} 5. Nf3 {[%emt 0:00:03]} Nf6 {[%emt 0:00:40]} 6. Bf4 {[%emt 0:00:39]} Bd6 {[%emt 0:01:05]} 7. Bxd6 {[%emt 0:00:13]} Qxd6 {[%emt 0:00:01]} 8. e3 {[%emt 0:00:02]} Bf5 {[%emt 0:01:30]} 9. Bd3 {[%emt 0:00:05]} Bxd3 {[%emt 0:00:19]} 10. Qxd3 {[%emt 0:00:01]} Nbd7 {[%emt 0:00:52]} 11. O-O {[%emt 0:00:23]} O-O {[%emt 0:00:14]} 12. Rae1 {[%emt 0:03:47]} Rae8 {[%emt 0:06:36]} 13. Qf5 {[%emt 0:02:54]} h6 {[%emt 0:26:57]} 14. Re2 {[%emt 0:00:17]} g6 {[%emt 0:12:12]} 15. Qh3 {[%emt 0:00:09]} Kg7 {[%emt 0:00:08]} 16. Qg3 {[%emt 0:00:07]} Qxg3 {[%emt 0:01:46]} 17. hxg3 {[%emt 0:00:01]} Ne4 {[%emt 0:01:37]} 18. Nxe4 {[%emt 0:00:50]} Rxe4 {[%emt 0:00:00]} 19. Nd2 {[%emt 0:00:21]} Re6 {[%emt 0:04:09]} 20. Nb3 {[%emt 0:00:15]} f5 {[%emt 0:03:17]} 21. Rc2 {[%emt 0:00:10]} Rf7 {[%emt 0:01:36]} 22. Nc5 {[%emt 0:01:15]} Nxc5 {[%emt 0:00:21]} 23. Rxc5 {[%emt 0:00:02]} g5 {[%emt 0:00:09]} 24. b4 {[%emt 0:02:31]} a6 {[%emt 0:07:26]} 25. a4 {[%emt 0:00:00]} f4 {[%emt 0:00:36]} 26. gxf4 {[%emt 0:00:02]} gxf4 {[%emt 0:00:01]} 27. Re1 {[%emt 0:01:37]} Kg6 {[%emt 0:08:57]} 28. b5 {[%emt 0:00:23]} axb5 {[%emt 0:00:07]} 29. axb5 {[%emt 0:00:01]} Kf5 {[%emt 0:00:43]} 30. bxc6 {[%emt 0:00:20]} bxc6 {[%emt 0:00:05]} 31. Rec1 {[%emt 0:01:38]} fxe3 {[%emt 0:01:07]} 32. fxe3 {[%emt 0:00:01]} Rff6 {[%emt 0:00:15]} 33. Rf1+ {[%emt 0:02:37]} Ke4 {[%emt 0:00:13]} 34. Rxf6 {[%emt 0:00:09]} Rxf6 {[%emt 0:00:01]} 35. Rc3 {[%emt 0:00:12]} h5 {[%emt 0:00:33]} 36. Kh2 {[%emt 0:00:22]} h4 {[%emt 0:01:36]} 37. Kh3 {[%emt 0:00:11]} Rg6 {[%emt 0:00:16]} 38. Kh2 {[%emt 0:04:03]} Rg3 {[%emt 0:02:15]} 39. Rxc6 {[%emt 0:00:20]} Kxe3 {[%emt 0:00:08]} 40. Rh6 {[%emt 0:03:42]} Rg4 {[%emt 0:00:42]} 41. Kh3 {[%emt 0:00:16]} Rxd4 {[%emt 0:00:35]} 42. Rxh4 {[%emt 0:01:28]} Rxh4+ {[%emt 0:00:08]} 43. Kxh4 {[%emt 0:00:01]} d4 {[%emt 0:00:07]} 44. g4 {[%emt 0:00:02]} d3 {[%emt 0:00:09]} 45. g5 {[%emt 0:00:03]} d2 {[%emt 0:00:06]} 46. g6 {[%emt 0:00:09]} d1=Q {[%emt 0:00:06]} 47. Kg5 {[%emt 0:00:15]} Qd8+ {[%emt 0:00:06]} 48. Kh6 {[%emt 0:00:05]} Qg8 {[%emt 0:00:04]} 0-1